bitfinex/quotes_SOLUSD_20240808
["timestamp","ask_amount","ask_price","bid_price","bid_amount"]
[1723113827694,28.38,154.01,153.96,15.1466]
[1723113827881,28.38,153.99,153.96,15.1466]
[1723113828281,28.38,153.99,153.93,6.5865]
[1723113828477,28.38,153.97,153.92,15.4583]
[1723113834703,28.38,154.01,153.92,15.4583]
[1723113835007,28.38,154.01,153.93,0.17]
[1723113835186,28.38,154.01,153.93,1.46891634]
[1723113836828,383.2,154.03,153.95,6.6081]
[1723113836829,411.58,154.03,153.95,6.6081]
[1723113836991,6.4914,154.05,153.95,6.6081]
[1723113836992,28.38,154.05,153.95,6.6081]
[1723113837512,28.38,154.05,153.96,15.4289]
[1723113837893,28.38,154.05,153.96,15.0889]
[1723113838108,28.38,154.03,153.96,15.0889]
[1723113838397,28.38,153.99,153.92,15.729]
[1723113838708,28.38,153.97,153.92,15.729]
[1723113839498,28.38,153.97,153.88,16.2889]
[1723113839714,45.0,153.96,153.88,16.2889]
[1723113843406,28.38,153.93,153.88,16.2889]
[1723113843822,28.38,153.91,153.88,16.2889]
[1723113844199,28.38,153.91,153.84,35.21794039]
[1723113844200,34.8774,153.91,153.84,35.21794039]
[1723113844517,28.38,153.89,153.84,15.9998]
[1723113844729,28.38,153.89,153.83,6.0971]
[1723113844730,28.38,153.85,153.77,19.22688898]
[1723113844895,28.38,153.83,153.76,23.3137]
[1723113845393,28.38,153.85,153.76,23.3137]
[1723113845593,45.0,153.84,153.76,23.3137]
[1723113846399,28.38,153.87,153.76,24.61400747]
[1723113846803,28.38,153.87,153.76,23.3137]
[1723113847306,6.1034,154.07,153.86,28.38]
[1723113847492,34.8709,154.06,153.94,28.38]
[1723113847687,12.5939,154.07,153.95,20.0]
[1723113847917,6.4927,154.02,153.88,18.8789]
[1723113848108,6.4927,154.02,153.89,20.34]
[1723113848399,22.4211,154.02,153.89,20.34]
[1723113849100,15.9284,154.02,153.88,18.8789]
[1723113849396,42.5933,154.01,153.88,18.8789]
[1723113849596,45.0,154.0,153.88,18.8789]
[1723113850401,6.6641,153.99,153.88,18.8789]
[1723113850609,51.4945,153.98,153.88,18.8789]
[1723113850806,45.34,153.97,153.88,18.8789]
[1723113851013,45.17,153.97,153.88,18.8789]
[1723113851425,0.17,153.97,153.88,18.8789]
[1723113851597,6.8347,153.97,153.84,6.3919]
[1723113851793,45.0,153.96,153.85,20.0]
[1723113852014,0.34,153.95,153.85,20.0]
[1723113855032,383.2,154.0,153.86,0.17]
[1723113855200,0.17,153.99,153.85,21.29955709]
[1723113855400,0.17,153.99,153.86,1.29955025]
[1723113855615,6.6641,153.99,153.86,0.17]
[1723113855805,6.6639,153.99,153.86,1.63948009]
[1723113856206,0.17,153.99,153.86,1.63948009]
[1723113856422,383.2,154.0,153.86,0.34]
[1723113856718,389.6936,154.0,153.86,1.63939145]
[1723113856925,6.4944,153.98,153.86,1.63939145]
[1723113857220,383.2,154.0,153.86,1.63939145]
[1723113857221,6.494,153.99,153.86,1.63939145]
[1723113857427,389.6935,154.0,153.86,1.63939145]
[1723113857634,383.2,154.0,153.86,0.34]
[1723113857805,45.34,153.99,153.86,1.63907726]
[1723113858002,383.2,154.0,153.86,0.34]
[1723113858329,389.6938,154.0,153.86,1.63892631]
[1723113858526,6.4939,153.99,153.86,1.63892631]
[1723113858729,389.98558282,154.0,153.86,0.34]
[1723113859221,6.494,153.99,153.86,0.34]
[1723113859426,0.34,153.98,153.86,0.34]
[1723113859807,0.34,153.98,153.86,1.63901109]
[1723113860029,389.98558282,154.0,153.86,0.34]
[1723113860227,389.98558282,154.0,153.86,1.63863034]
[1723113860423,6.78558282,154.0,153.86,1.63863034]
[1723113860725,13.27908282,154.0,153.86,1.63863034]
[1723113860929,13.27908282,154.0,153.86,46.63863034]
[1723113861227,6.494,153.99,153.87,20.0]
[1723113861409,6.494,153.99,153.88,0.17]
[1723113861746,45.0,153.98,153.88,0.17]
[1723113862025,45.0,153.98,153.87,0.34]
[1723113862225,45.0,153.98,153.87,0.17]
[1723113862600,45.0,153.99,153.87,0.17]
[1723113863323,0.17,153.98,153.87,0.17]
[1723113863521,0.34,153.98,153.87,0.17]
[1723113863738,0.34,153.98,153.86,0.34]
[1723113864828,0.34,153.98,153.85,20.0]
[1723113865023,6.4955,153.96,153.85,20.0]
[1723113865326,45.0,153.95,153.85,20.0]
[1723113865537,45.0,153.95,153.85,19.5]
[1723113866235,45.0,153.95,153.86,0.17]
[1723113867711,389.98558282,154.0,153.86,0.17]
[1723113867916,389.98558282,154.0,153.87,12.4017]
[1723113868126,389.98558282,154.0,153.88,0.34]
[1723113868323,389.98558282,154.0,153.88,20.34]
[1723113869443,45.0,153.99,153.88,20.34]
[1723113869740,45.0,153.99,153.89,6.1944]
[1723113869942,383.2,154.0,153.9,0.34]
[1723113870141,6.4923,154.03,153.9,20.34]
[1723113870337,45.0,154.02,153.91,12.4017]
[1723113870547,405.59194159,154.06,153.92,66.63885717]
[1723113870846,267.1902,154.08,153.93,7.20812936]
[1723113871023,15.6051,154.1,153.95,12.4017]
[1723113871350,6.4885,154.12,153.96,66.63846609]
[1723113871642,6.4885,154.12,153.97,19.20191413]
[1723113871849,6.4885,154.12,153.98,66.63829743]
[1723113872150,6.4885,154.12,153.99,1.29830036]
[1723113872456,650.3876,154.15,154.01,12.4017]
[1723113872628,643.9,154.15,154.02,21.63807764]
[1723113872947,383.2,154.15,154.02,20.34]
[1723113873325,6.489,154.11,154.02,20.0]
[1723113873527,389.98802657,154.15,154.01,12.4017]
[1723113874245,45.0,154.14,154.01,12.4017]
[1723113874448,0.17,154.13,154.01,12.4017]
[1723113875131,6.4892,154.1,154.01,12.4017]
[1723113875341,51.6597,154.09,154.01,12.4017]
[1723113876448,45.17,154.09,154.0,6.2308]
[1723113876762,0.17,154.08,154.0,6.2308]
[1723113876928,6.6602,154.08,154.0,6.2308]
[1723113877129,45.17,154.07,154.0,6.2308]
[1723113877530,0.17,154.06,154.0,6.2308]
[1723113879644,45.0,154.07,154.0,6.2308]
[1723113879837,45.34,154.08,154.0,6.2308]
[1723113880746,45.0,154.09,154.0,6.2308]
[1723113881243,383.2,154.13,154.0,6.2308]
[1723113881630,383.2,154.13,154.01,21.29810393]
[1723113881951,383.2,154.13,154.02,45.34]
[1723113882160,383.2,154.13,154.02,0.34]
[1723113882726,15.6051,154.18,154.03,12.4017]
[1723113882938,385.78977112,154.19,154.04,0.34]
[1723113883139,6.78651734,154.18,154.05,6.5284]
[1723113883354,260.7,154.21,154.06,20.34]
[1723113883536,6.4856,154.19,154.06,20.34]
[1723113884058,260.7,154.21,154.06,20.34]
[1723113884635,6.485,154.2,154.06,20.34]
[1723113885159,6.4859,154.18,154.06,20.34]
[1723113886252,45.0,154.17,154.06,20.34]
[1723113886458,45.0,154.18,154.06,20.34]
[1723113886828,45.34,154.19,154.06,20.34]
[1723113887334,45.17,154.19,154.06,20.34]
[1723113887848,0.17,154.18,154.06,20.34]
[1723113889548,45.17,154.19,154.06,20.34]
[1723113889757,45.0,154.18,154.06,20.34]
[1723113889935,0.17,154.19,154.06,20.34]
[1723113890238,45.0,154.2,154.06,20.34]
[1723113892651,51.4853,154.2,154.06,20.34]
[1723113892855,6.8255,154.19,154.06,20.34]
[1723113893162,45.0,154.18,154.06,20.34]
[1723113894063,51.486,154.18,154.06,20.34]
[1723113894276,0.34,154.17,154.06,20.34]
[1723113895142,0.34,154.17,154.06,20.0]
[1723113895444,0.34,154.17,154.05,6.5284]
[1723113895844,6.8264,154.17,154.05,6.5284]
[1723113896047,45.0,154.16,154.05,6.5284]
[1723113896258,0.34,154.15,154.05,6.5284]
[1723113896765,0.34,154.15,154.06,20.0]
[1723113897872,6.78641447,154.18,154.07,0.17]
[1723113898154,260.7,154.21,154.07,0.17]
[1723113898470,6.78526673,154.21,154.09,6.2599]
[1723113898638,389.6842,154.22,154.1,0.34]
[1723113898964,6.4847,154.21,154.1,20.0]
[1723113899761,0.17,154.2,154.1,20.0]
[1723113900455,45.0,154.2,154.11,0.17]
[1723113900662,45.17,154.21,154.1,20.0]
[1723113900961,0.17,154.2,154.1,20.0]
[1723113901366,6.4855,154.19,154.09,6.2599]
[1723113901672,45.17,154.18,154.09,6.2599]
[1723113901851,6.4865,154.17,154.09,6.2599]
[1723113902050,45.0,154.16,154.09,6.2599]
[1723113902245,45.34,154.18,154.09,6.2599]
[1723113902567,45.17,154.18,154.09,6.2599]
[1723113902859,0.17,154.17,154.09,6.2599]
[1723113903085,45.0,154.18,154.09,6.2599]
[1723113904665,0.844628,154.23,154.1,20.0]
[1723113904886,0.844628,154.23,154.11,0.34]
[1723113905178,0.844628,154.23,154.1,21.29727378]
[1723113905370,6.4842,154.22,154.1,20.0]
[1723113905682,0.844628,154.23,154.1,20.0]
[1723113906062,0.844628,154.23,154.09,6.2599]
[1723113906262,6.4849,154.21,154.09,6.2599]
[1723113906570,45.34,154.2,154.09,6.2599]
[1723113907287,45.34,154.2,154.1,20.0]
[1723113907585,0.17,154.19,154.1,20.0]
[1723113907785,0.34,154.19,154.09,6.2599]
[1723113907988,0.17,154.19,154.09,6.2599]
[1723113908192,45.0,154.2,154.1,20.0]
[1723113908379,45.34,154.21,154.1,20.0]
[1723113908569,45.17,154.21,154.1,20.0]
[1723113909093,0.17,154.21,154.1,20.0]
[1723113909312,0.844628,154.23,154.12,6.5859]
[1723113909598,0.844628,154.23,154.13,77.5717]
[1723113909893,0.844628,154.23,154.13,32.5717]
[1723113910292,0.844628,154.23,154.13,32.4017]
[1723113910865,0.844628,154.23,154.14,1.27365229]
[1723113911061,0.844628,154.23,154.13,32.4017]
[1723113912367,0.34,154.22,154.13,32.4017]
[1723113912769,0.844628,154.23,154.13,32.4017]
[1723113913475,0.844628,154.23,154.13,12.4017]
[1723113913677,0.34,154.22,154.13,12.4017]
[1723113915691,0.844628,154.23,154.13,12.4017]
[1723113916268,0.844628,154.23,154.14,1.27783685]
[1723113916481,0.844628,154.23,154.14,0.17]
[1723113916678,0.844628,154.23,154.14,20.34]
[1723113916880,0.844628,154.23,154.14,20.0]
[1723113918295,0.844628,154.23,154.15,1.16923711]
[1723113918476,0.844628,154.23,154.14,20.0]
[1723113919587,0.844628,154.23,154.15,7.18337521]
[1723113919786,0.844628,154.23,154.16,20.34]
[1723113920402,0.844628,154.23,154.17,12.4017]
[1723113920576,0.844628,154.23,154.18,0.34]
[1723113920772,0.844628,154.23,154.18,20.34]
[1723113920974,0.844628,154.23,154.18,20.0]
[1723113921828,0.844628,154.23,154.17,12.4017]
[1723113922104,0.844628,154.23,154.15,6.0144]
[1723113922283,0.34,154.22,154.15,6.0144]
[1723113925075,45.844628,154.23,154.15,6.0144]
[1723113925495,0.17,154.22,154.15,6.0144]
[1723113926401,0.844628,154.23,154.15,6.0144]
[1723113927608,0.844628,154.23,154.16,1.29643162]
[1723113927783,0.844628,154.23,154.17,12.4017]
[1723113929517,0.844628,154.23,154.18,20.0]
[1723113930322,389.98091318,154.32,154.19,6.4784]
[1723113930492,267.1796,154.33,154.2,20.17]
[1723113930808,260.7,154.33,154.2,20.0]
[1723113931109,267.48060589,154.33,154.2,20.0]
[1723113931297,6.4805,154.31,154.21,11.5571]
[1723113931796,51.4809,154.3,154.21,11.5571]
[1723113932316,51.4808,154.3,154.21,11.5571]
[1723113932517,45.0,154.3,154.21,11.5571]
[1723113932808,45.0,154.3,154.19,6.3084]
[1723113932809,6.4817,154.28,154.19,6.3084]
[1723113932988,45.34,154.27,154.19,6.3084]
[1723113933195,6.4825,154.26,154.19,6.3084]
[1723113933389,0.17,154.25,154.19,6.3084]
[1723113933785,0.17,154.25,154.17,11.5574]
[1723113935399,383.2,154.28,154.18,0.17]
[1723113935709,383.2,154.28,154.18,20.0]
[1723113935906,389.6817,154.28,154.18,20.0]
[1723113936485,0.34,154.27,154.18,20.0]
[1723113936685,45.34,154.27,154.18,20.0]
[1723113938592,45.34,154.27,154.17,11.5574]
[1723113939395,51.8221,154.27,154.17,11.5574]
[1723113939717,6.4825,154.26,154.17,11.5574]
[1723113939907,45.34,154.25,154.17,11.5574]
[1723113940088,73.64,154.25,154.17,11.5574]
[1723113940285,89.7785,154.25,154.15,6.1961]
[1723113940600,6.4851,154.2,154.11,6.6217]
[1723113940799,45.34,154.19,154.11,6.6217]
[1723113941312,45.0,154.18,154.11,6.6217]
[1723113941514,0.34,154.19,154.11,6.6217]
[1723113941896,28.64,154.19,154.11,6.6217]
[1723113942100,45.0,154.18,154.09,11.5574]
[1723113942308,28.64,154.17,154.09,11.5574]
[1723113942618,45.0,154.16,154.07,6.5528]
[1723113942920,0.34,154.15,154.07,6.5528]
[1723113943297,45.0,154.16,154.07,6.5528]
[1723113943908,45.34,154.17,154.07,6.5528]
[1723113944107,45.0,154.17,154.07,6.5528]
[1723113946303,45.0,154.17,154.08,20.0]
[1723113950323,383.2,154.21,154.09,0.34]
[1723113950519,45.0,154.2,154.1,11.5574]
[1723113950711,6.0233,154.24,154.11,21.63734683]
[1723113950919,6.0233,154.24,154.11,20.34]
[1723113951121,260.7,154.25,154.12,6.6545]
[1723113951330,260.7,154.25,154.13,0.34]
[1723113951506,260.7,154.25,154.13,20.34]
[1723113952832,267.183,154.25,154.13,20.34]
[1723113953128,6.4835,154.24,154.13,20.0]
[1723113953328,260.7,154.25,154.13,20.0]
[1723113954004,45.0,154.24,154.13,20.0]
[1723113954216,260.7,154.25,154.15,11.5574]
[1723113954426,260.7,154.25,154.16,0.34]
[1723113954929,260.7,154.25,154.16,20.0]
[1723113955127,267.1833,154.25,154.16,20.0]
[1723113955307,267.183,154.25,154.15,11.5574]
[1723113955503,6.483,154.25,154.15,11.5574]
[1723113955706,45.34,154.24,154.15,11.5574]
[1723113956328,6.4846,154.21,154.12,6.6545]
[1723113956607,6.4859,154.18,154.08,6.6545]
[1723113956813,45.34,154.17,154.08,6.6545]
[1723113957626,12.5479,154.21,154.08,6.6545]
[1723113957833,45.34,154.2,154.08,6.6545]
[1723113958021,51.8251,154.2,154.08,6.6545]
[1723113958928,6.4855,154.19,154.08,6.6545]
[1723113959232,45.34,154.18,154.08,6.6545]
[1723113960150,51.8259,154.18,154.08,6.6545]
[1723113960437,6.4889,154.11,154.04,6.0047]
[1723113960632,36.43,154.13,154.0,6.0047]
[1723113960830,6.491,154.06,154.0,6.0047]
[1723113961040,45.34,154.12,154.0,6.0047]
[1723113961041,0.17,154.07,154.0,6.0047]
[1723113961227,45.34,154.07,154.0,6.0047]
[1723113961417,45.34,154.07,153.96,6.4213]
[1723113962428,6.4914,154.05,153.96,6.4213]
[1723113962633,45.34,154.04,153.96,6.4213]
[1723113962820,0.34,154.07,153.96,6.4213]
[1723113963138,45.34,154.07,153.96,6.4213]
[1723113963646,45.17,154.07,153.96,6.4213]
[1723113963828,45.0,154.07,153.97,0.17]
[1723113964032,45.0,154.07,153.96,6.4213]
[1723113964235,0.34,154.06,153.97,20.0]
[1723113964630,45.0,154.07,153.97,20.0]
[1723113965529,15.7927,154.12,153.98,1.29841543]
[1723113965726,15.7927,154.12,153.99,1.29833111]
[1723113966045,6.4427,154.15,154.0,11.8974]
[1723113966237,15.3185,154.17,154.02,6.0553]
[1723113966448,21.8049,154.17,154.03,20.34]
[1723113966927,6.78680096,154.18,154.07,36.43]
[1723113967125,6.4834,154.24,154.09,17.6127]
[1723113967331,6.4834,154.24,154.1,20.34]
[1723113967550,6.483,154.25,154.1,20.34]
[1723113967748,389.683,154.25,154.1,20.34]
[1723113968049,383.2,154.25,154.1,57.20153452]
[1723113968259,383.2,154.25,154.11,45.0]
[1723113968554,383.2,154.25,154.12,20.0]
[1723113968724,260.7,154.32,154.13,82.20199592]
[1723113968930,389.6807,154.31,154.14,20.17]
[1723113969250,389.6807,154.31,154.15,45.17]
[1723113969423,389.6807,154.31,154.16,20.17]
[1723113969624,389.6807,154.31,154.17,0.17]
[1723113970334,383.2,154.31,154.18,6.4595]
[1723113970639,383.2,154.31,154.19,20.34]
[1723113971442,383.2,154.37,154.2,11.5574]
[1723113971630,389.6773,154.39,154.22,36.43]
[1723113971831,6.77798491,154.37,154.23,20.34]
[1723113972449,6.77798491,154.37,154.23,20.0]
[1723113972650,6.4788,154.35,154.21,20.0]
[1723113972850,6.4792,154.34,154.21,20.0]
[1723113973334,6.4796,154.33,154.21,20.0]
[1723113973535,6.77798491,154.37,154.21,20.0]
[1723113973750,45.17,154.36,154.22,0.34]
[1723113974057,0.17,154.35,154.22,0.34]
[1723113974380,13.25608491,154.37,154.22,0.34]
[1723113974558,6.77798491,154.37,154.22,0.34]
[1723113974855,6.4784,154.36,154.22,0.34]
[1723113975239,6.4784,154.36,154.22,1.63644303]
[1723113975753,45.0,154.35,154.22,0.34]
[1723113975955,0.17,154.34,154.22,0.34]
[1723113977156,6.6493,154.34,154.21,20.0]
[1723113977336,45.17,154.33,154.21,20.0]
[1723113977725,45.17,154.33,154.22,0.17]
[1723113977938,0.17,154.33,154.22,0.17]
[1723113978140,0.17,154.33,154.21,20.0]
[1723113978542,0.17,154.33,154.22,0.17]
[1723113978742,0.17,154.33,154.22,0.34]
[1723113978962,0.17,154.33,154.21,20.0]
[1723113979166,6.4805,154.31,154.21,20.0]
[1723113979336,45.0,154.3,154.21,20.0]
[1723113981938,383.2,154.35,154.21,20.0]
[1723113982159,383.2,154.35,154.22,36.77]
[1723113982357,383.2,154.35,154.23,65.0]
[1723113982553,383.2,154.35,154.24,0.34]
[1723113982864,383.2,154.35,154.25,6.5831]
[1723113983054,383.2,154.35,154.26,20.0]
[1723113983970,383.2,154.35,154.27,0.34]
[1723113984466,383.2,154.35,154.26,20.0]
[1723113985376,0.844628,154.38,154.26,20.0]
[1723113985873,6.6479,154.37,154.26,20.0]
[1723113986073,6.4788,154.35,154.25,6.5831]
[1723113986371,6.48,154.32,154.2,18.0045]
[1723113986571,0.34,154.31,154.2,18.0045]
[1723113986868,6.6504,154.31,154.2,18.0045]
[1723113987072,45.17,154.3,154.2,18.0045]
[1723113987473,45.0,154.3,154.2,18.0045]
[1723113987678,399.2983,154.33,154.2,18.0045]
[1723113987855,399.2983,154.33,154.21,1.63646831]
[1723113988060,45.0,154.32,154.21,1.63646831]
[1723113988253,0.34,154.31,154.2,18.0045]
[1723113988769,0.34,154.31,154.21,20.0]
[1723113988971,45.0,154.32,154.21,20.0]
[1723113989145,383.2,154.33,154.21,20.0]
[1723113989473,383.2,154.33,154.22,0.17]
[1723113989676,383.2,154.33,154.22,0.34]
[1723113990559,45.0,154.32,154.22,0.34]
[1723113991753,0.34,154.34,154.22,0.34]
[1723113992153,383.2,154.37,154.22,0.34]
[1723113992370,383.2,154.37,154.23,6.5105]
[1723113992572,383.2,154.37,154.24,20.34]
[1723113993653,6.4783,154.36,154.24,20.17]
[1723113993855,6.4783,154.36,154.24,20.0]
[1723113994172,45.0,154.35,154.24,20.0]
[1723113994360,383.2,154.37,154.25,0.34]
[1723113994361,45.0,154.36,154.25,0.34]
[1723113995377,45.0,154.36,154.26,11.5574]
[1723113995771,0.844628,154.38,154.27,65.0]
[1723113996072,0.844628,154.38,154.29,6.2054]
[1723113996272,0.844628,154.38,154.3,20.0]
[1723113999753,0.844628,154.38,154.29,6.2054]
[1723113999972,0.34,154.37,154.29,6.2054]
[1723114000178,45.34,154.37,154.29,6.2054]
[1723114000366,6.4787,154.36,154.29,6.2054]
[1723114000565,45.34,154.35,154.26,11.5574]
[1723114000773,45.0,154.34,154.26,11.5574]
[1723114000998,6.4816,154.29,154.21,18.1385]
[1723114001274,45.17,154.28,154.21,6.5811]
[1723114001474,51.8217,154.28,154.21,6.5811]
[1723114001656,45.34,154.28,154.21,6.5811]
[1723114002055,383.2,154.32,154.21,6.5811]
[1723114002275,45.34,154.31,154.21,6.5811]
[1723114002476,6.4816,154.29,154.17,17.6465]
[1723114002687,45.34,154.28,154.17,17.6465]
[1723114002855,51.8217,154.28,154.17,17.6465]
[1723114003255,6.4842,154.22,154.14,19.18073646]
[1723114003479,6.4842,154.22,154.13,17.7731]
[1723114003480,0.17,154.21,154.13,17.7731]
[1723114003687,45.34,154.21,154.13,6.2157]
[1723114004588,0.34,154.21,154.13,6.2157]
[1723114005979,0.34,154.21,154.09,17.6003]
[1723114006781,45.0,154.22,154.09,17.6003]
[1723114007077,383.2,154.26,154.09,17.6003]
[1723114007390,6.4837,154.24,154.1,20.34]
[1723114007556,6.483,154.25,154.1,20.34]
[1723114008154,383.2,154.26,154.1,20.34]
[1723114008359,6.483,154.25,154.1,20.34]
[1723114008888,383.2,154.26,154.1,20.34]
[1723114008889,396.46650617,154.26,154.1,20.34]
[1723114009092,383.2,154.25,154.1,20.34]
[1723114009394,0.17,154.24,154.1,20.34]
[1723114009585,45.34,154.24,154.1,20.34]
[1723114010983,45.34,154.24,154.1,20.0]
[1723114011479,45.34,154.24,154.11,0.90021006]
[1723114011899,0.17,154.24,154.11,0.90021006]
[1723114012455,0.17,154.24,154.12,0.34]
[1723114012860,0.17,154.24,154.13,0.17]
[1723114013062,0.17,154.24,154.11,0.34]
[1723114013285,45.34,154.24,154.11,0.34]
[1723114013660,45.34,154.24,154.09,17.6003]
[1723114013887,435.32423888,154.24,154.09,17.6003]
[1723114014068,435.32423888,154.24,154.1,1.29702162]
[1723114014403,6.4847,154.21,154.09,17.6003]
[1723114014563,45.34,154.2,154.09,17.6003]
[1723114014987,0.34,154.2,154.09,17.6003]
[1723114015162,0.34,154.2,154.1,20.0]
[1723114016374,6.8254,154.2,154.1,20.0]
[1723114016570,51.4855,154.19,154.1,20.0]
[1723114016910,45.34,154.18,154.09,17.6003]
[1723114017076,6.4868,154.16,154.09,6.0429]
[1723114017274,45.0,154.15,154.09,6.0429]
[1723114017480,0.34,154.18,154.09,6.0429]
[1723114017780,0.17,154.18,154.09,6.0429]
[1723114017982,45.34,154.19,154.09,6.0429]
[1723114018196,45.34,154.19,154.1,20.0]
[1723114019012,45.34,154.19,154.11,1.29718214]
[1723114019296,45.34,154.19,154.1,20.0]
[1723114019523,45.0,154.19,154.1,20.0]
[1723114019680,383.2,154.2,154.1,20.0]
[1723114020271,6.78423888,154.24,154.11,11.7274]
[1723114020484,6.4837,154.24,154.12,20.0]
[1723114021291,396.13901132,154.26,154.13,0.17]
[1723114021509,395.8415,154.26,154.13,0.34]
[1723114021684,389.6826,154.26,154.13,0.34]
[1723114021901,0.17,154.25,154.13,0.34]
[1723114022193,383.2,154.26,154.14,6.5301]
[1723114022382,383.2,154.26,154.15,20.0]
[1723114022707,6.4842,154.22,154.14,6.5301]
[1723114023213,389.98045994,154.26,154.14,6.5301]
[1723114023724,6.4837,154.24,154.14,6.5301]
[1723114024010,45.34,154.23,154.14,6.5301]
[1723114024314,396.46325994,154.26,154.15,20.0]
[1723114024517,6.4834,154.24,154.15,20.0]
[1723114024807,45.17,154.23,154.15,20.0]
[1723114025193,45.0,154.23,154.15,20.0]
[1723114025392,383.2,154.26,154.15,20.0]
[1723114025618,389.6827,154.26,154.15,20.0]
[1723114025820,383.2,154.26,154.15,20.0]
[1723114026514,6.7806738,154.25,154.14,6.5301]
[1723114026696,45.17,154.24,154.14,6.5301]
[1723114027098,0.17,154.23,154.14,6.5301]
[1723114027417,6.4847,154.21,154.14,6.5301]
[1723114027597,51.8251,154.2,154.11,11.5574]
[1723114027805,45.17,154.19,154.11,11.5574]
[1723114028112,6.7806738,154.25,154.12,1.29765751]
[1723114028312,45.17,154.24,154.12,1.29765751]
[1723114028513,383.2,154.26,154.13,6.0823]
[1723114028712,383.2,154.26,154.14,1.29705712]
[1723114029014,6.4837,154.24,154.13,6.0823]
[1723114029220,383.2,154.26,154.14,20.0]
[1723114029221,6.483,154.25,154.14,20.0]
[1723114029522,383.2,154.26,154.15,1.29719219]
[1723114029821,45.0,154.25,154.15,1.29719219]
[1723114030193,45.0,154.25,154.15,1.29708373]
[1723114030518,45.0,154.25,154.14,20.0]
[1723114030723,45.0,154.26,154.15,0.34]
[1723114030894,45.0,154.27,154.15,0.34]
[1723114031219,643.9,154.3,154.17,6.5495]
[1723114031389,643.9,154.3,154.18,21.6367187]
[1723114031588,383.2,154.3,154.18,21.6367187]
[1723114032024,383.2,154.3,154.18,20.34]
[1723114033196,383.2,154.3,154.18,21.29684025]
[1723114033399,45.0,154.29,154.19,0.17]
[1723114033606,45.0,154.29,154.18,20.0]
[1723114033826,36.43,154.27,154.16,11.5574]
[1723114034122,36.43,154.27,154.13,6.6404]
[1723114034123,6.4846,154.21,154.13,6.6404]
[1723114034328,45.34,154.2,154.12,11.5574]
[1723114034620,0.17,154.19,154.09,6.6392]
[1723114035806,6.4864,154.17,154.09,6.6392]
[1723114036011,51.6568,154.16,154.09,6.6392]
[1723114036201,6.4876,154.14,154.05,25.23174234]
[1723114036399,0.34,154.13,154.05,25.23174234]
[1723114036611,45.0,154.15,154.05,25.23174234]
[1723114036828,45.0,154.15,154.06,1.29801683]
[1723114037198,36.43,154.21,154.05,25.23174234]
[1723114037398,6.4863,154.17,154.05,25.23174234]